fUSD/lending_fUSD_20250113
["ID","MTS","AMOUNT","RATE_DAILY","PERIOD"]
[348729775,1736758246241,-500.0,9.533e-05,2]
[348729776,1736758246250,-500.0,9.533e-05,2]
[348729777,1736758246260,-500.0,9.533e-05,2]
[348729778,1736758246269,-500.0,9.533e-05,2]
[348729779,1736758246279,-500.0,9.533e-05,2]
[348729780,1736758246289,-500.0,9.533e-05,2]
[348729781,1736758246299,-405.756,9.533e-05,2]
[348729782,1736758246309,-500.0,9.533e-05,2]
[348729784,1736758246320,-500.0,9.533e-05,2]
[348729786,1736758246329,-500.0,9.533e-05,2]
[348729788,1736758246338,-500.0,9.533e-05,2]
[348729790,1736758246347,-500.0,9.533e-05,2]
[348729792,1736758246356,-518.89,9.533e-05,2]
[348729794,1736758246365,-500.0,9.533e-05,2]
[348729796,1736758246375,-500.0,9.533e-05,2]
[348729798,1736758246384,-500.0,9.533e-05,2]
[348729799,1736758246393,-500.0,9.533e-05,2]
[348729800,1736758246402,-500.0,9.533e-05,2]
[348729801,1736758246412,-500.0,9.533e-05,2]
[348729802,1736758246421,-500.0,9.533e-05,2]
[348729803,1736758246431,-500.0,9.533e-05,2]
[348729804,1736758246440,-500.0,9.533e-05,2]
[348729805,1736758246449,-500.0,9.533e-05,2]
[348729806,1736758246458,-500.0,9.533e-05,2]
[348729807,1736758246467,-500.0,9.533e-05,2]
[348729808,1736758246479,-551.94506423,9.533e-05,2]
[348729809,1736758246489,-500.0,9.533e-05,2]
[348729810,1736758246499,-1006.46,9.533e-05,2]
[348729811,1736758246509,-500.0,9.533e-05,2]
[348729812,1736758246518,-500.0,9.533e-05,2]
[348729813,1736758246527,-500.0,9.533e-05,2]
[348729814,1736758246537,-338.55,9.533e-05,2]
[348729815,1736758246546,-500.0,9.533e-05,2]
[348729816,1736758246556,-769.31,9.533e-05,2]
[348729817,1736758246565,-998.48,9.533e-05,2]
[348729818,1736758246574,-1015.65,9.533e-05,2]
[348729819,1736758246583,-500.0,9.533e-05,2]
[348729820,1736758246593,-1922.41,9.533e-05,2]
[348729821,1736758246602,-1383.47,9.533e-05,2]
[348729822,1736758246611,-500.0,9.533e-05,2]
[348729823,1736758246621,-869.29,9.806e-05,2]
[348729824,1736758246629,-777.51,9.806e-05,2]
[348729825,1736758246638,-500.0,9.806e-05,2]
[348729826,1736758246648,-500.0,9.806e-05,2]
[348729827,1736758246657,-500.0,9.806e-05,2]
[348729828,1736758246666,-500.0,9.806e-05,2]
[348729829,1736758246676,-537.19,9.806e-05,2]
[348729830,1736758246685,-822.49,9.806e-05,2]
[348729831,1736758246694,-501.73344905,9.806e-05,2]
[348729832,1736758246703,-500.0,9.806e-05,2]
[348729833,1736758246712,-581.56,9.806e-05,2]
[348729834,1736758246722,-708.69,9.806e-05,2]
[348729835,1736758246731,-500.0,9.806e-05,2]
[348729836,1736758246740,-507.30900962,9.806e-05,2]
[348729837,1736758246749,-502.50179375,9.806e-05,2]
[348729838,1736758246759,-500.0,9.806e-05,2]
[348729839,1736758246769,-341.45909219,9.806e-05,2]
[348729840,1736758246779,-500.0,9.806e-05,2]
[348729841,1736758246788,-500.0,9.806e-05,2]
[348729842,1736758246797,-500.0,9.806e-05,2]
[348729843,1736758246807,-500.0,9.806e-05,2]
[348729844,1736758246817,-1071.28,9.806e-05,2]
[348729845,1736758246826,-516.24182189,9.806e-05,2]
[348729846,1736758246836,-500.0,9.806e-05,2]
[348729847,1736758246847,-617.33,9.806e-05,2]
[348729848,1736758246856,-500.0,9.806e-05,2]
[348729849,1736758246865,-241.55888075,9.806e-05,2]
[348729850,1736758246875,-500.0,9.806e-05,2]
[348729851,1736758246884,-500.0,9.806e-05,2]
[348729852,1736758246894,-500.0,9.806e-05,2]
[348729853,1736758246903,-500.0,9.806e-05,2]
[348729854,1736758246912,-601.73,9.806e-05,2]
[348729855,1736758246922,-500.0,9.806e-05,2]
[348729856,1736758246931,-500.0,9.806e-05,2]
[348729857,1736758246941,-559.64,9.806e-05,2]
[348729858,1736758246951,-500.0,9.806e-05,2]
[348729859,1736758246961,-517.81,9.806e-05,2]
[348729860,1736758246971,-503.8132128,9.806e-05,2]
[348729861,1736758246981,-500.0,9.806e-05,2]
[348729862,1736758246990,-500.0,9.806e-05,2]
[348729863,1736758247000,-500.0,9.806e-05,2]
[348729864,1736758247010,-730.96,9.806e-05,2]
[348729865,1736758247019,-500.0,9.806e-05,2]
[348729866,1736758247031,-500.0,9.806e-05,2]
[348729867,1736758247041,-500.0,9.806e-05,2]
[348729868,1736758247051,-503.00616498,9.806e-05,2]
[348729869,1736758247060,-500.0,9.806e-05,2]
[348729870,1736758247070,-504.65,9.806e-05,2]
[348729871,1736758247081,-500.0,9.806e-05,2]
[348729872,1736758247092,-500.0,9.806e-05,2]
[348729873,1736758247102,-500.0,9.806e-05,2]
[348729874,1736758247112,-500.0,9.806e-05,2]
[348729875,1736758247121,-500.0,9.806e-05,2]
[348729876,1736758247131,-500.0,9.806e-05,2]
[348729877,1736758247140,-500.0,9.806e-05,2]
[348729878,1736758247150,-500.0,9.806e-05,2]
[348729879,1736758247159,-500.0,9.806e-05,2]
[348729880,1736758247168,-578.5,9.806e-05,2]
[348729881,1736758247177,-1196.43,9.806e-05,2]
[348729882,1736758247187,-500.0,9.806e-05,2]
[348729883,1736758247197,-500.0,9.806e-05,2]
[348729884,1736758247207,-610.05,9.806e-05,2]
[348729885,1736758247217,-500.0,9.806e-05,2]
[348729886,1736758247226,-500.0,9.806e-05,2]
[348729887,1736758247236,-500.0,9.806e-05,2]
[348729888,1736758247245,-252.03287353,9.806e-05,2]
[348729889,1736758247254,-1701.56,9.806e-05,2]
[348729890,1736758247264,-500.0,9.806e-05,2]
[348729891,1736758247273,-500.0,9.806e-05,2]
[348729892,1736758247283,-622.13,9.806e-05,2]
[348729893,1736758247293,-500.0,9.806e-05,2]
[348729894,1736758247302,-500.0,9.806e-05,2]
[348729895,1736758247312,-2117.1,9.806e-05,2]
[348729896,1736758247321,-500.0,9.806e-05,2]
[348729897,1736758247330,-681.09,9.806e-05,2]
[348729898,1736758247340,-668.55,9.806e-05,2]
[348729899,1736758247350,-500.0,9.806e-05,2]
[348729900,1736758247359,-500.0,9.806e-05,2]
[348729901,1736758247369,-500.0,9.806e-05,2]
[348729902,1736758247379,-500.0,9.806e-05,2]
[348729903,1736758247389,-1016.3,9.806e-05,2]
[348729904,1736758247399,-574.38,9.806e-05,2]
[348729905,1736758247408,-561.09,9.806e-05,2]
[348729906,1736758247418,-634.65,9.806e-05,2]
[348729907,1736758247427,-531.29652207,9.806e-05,2]
[348729908,1736758247437,-500.0,9.806e-05,2]
[348729909,1736758247447,-500.0,9.806e-05,2]
[348729910,1736758247457,-500.0,9.806e-05,2]
[348729911,1736758247467,-500.0,9.806e-05,2]
[348729912,1736758247476,-500.0,9.806e-05,2]
[348729913,1736758247486,-506.64576768,9.806e-05,2]
[348729914,1736758247496,-500.0,9.806e-05,2]
[348729915,1736758247505,-585.5,9.806e-05,2]
[348729916,1736758247515,-500.0,9.806e-05,2]
[348729917,1736758247524,-500.0,9.806e-05,2]
[348729918,1736758247534,-500.0,9.806e-05,2]
[348729919,1736758247544,-991.920506,9.806e-05,2]
[348729920,1736758247553,-2355.08,9.806e-05,2]
[348729921,1736758247563,-529.71,9.806e-05,2]
[348729922,1736758247572,-500.0,9.806e-05,2]
[348729923,1736758247581,-500.0,9.806e-05,2]
[348729924,1736758247591,-500.0,9.806e-05,2]
[348729925,1736758247600,-500.0,9.806e-05,2]
[348729926,1736758247610,-500.0,9.806e-05,2]
[348729927,1736758247619,-500.0,9.806e-05,2]
[348729928,1736758247629,-500.0,9.806e-05,2]
[348729929,1736758247639,-500.0,9.806e-05,2]
[348729930,1736758247648,-500.0,9.806e-05,2]
[348729931,1736758247658,-500.0,9.806e-05,2]
[348729932,1736758247667,-1006.636744,9.806e-05,2]
[348729933,1736758247677,-500.0,9.806e-05,2]
[348729934,1736758247686,-589.7196191,9.806e-05,2]
[348729935,1736758247696,-500.0,9.806e-05,2]
[348729936,1736758247707,-602.62,9.806e-05,2]
[348729937,1736758247716,-500.0,9.806e-05,2]
[348729938,1736758247727,-500.0,9.806e-05,2]
[348729939,1736758247736,-500.0,9.806e-05,2]
[348729940,1736758247746,-500.0,9.806e-05,2]
[348729941,1736758247756,-500.0,9.806e-05,2]
[348729942,1736758247766,-500.0,9.806e-05,2]
[348729943,1736758247776,-500.0,9.806e-05,2]
[348729944,1736758247786,-500.0,9.806e-05,2]
[348729945,1736758247796,-500.0,9.806e-05,2]
[348729946,1736758247805,-349.65780137,9.806e-05,2]
[348729947,1736758247814,-500.0,9.806e-05,2]
[348729948,1736758247824,-500.0,9.806e-05,2]
[348729949,1736758247833,-221.45138254,9.806e-05,2]
[348729950,1736758247843,-500.0,9.806e-05,2]
[348729951,1736758247853,-4086.3,9.806e-05,2]
[348729952,1736758247863,-500.0,9.806e-05,2]
[348729953,1736758247872,-500.0,9.806e-05,2]
[348729954,1736758247881,-500.0,9.806e-05,2]
[348729955,1736758247891,-500.0,9.806e-05,2]
[348729956,1736758247899,-500.0,9.806e-05,2]
[348729957,1736758247908,-500.0,9.806e-05,2]
[348729958,1736758247918,-500.0,9.806e-05,2]
[348729959,1736758247927,-508.38727313,9.806e-05,2]
[348729960,1736758247937,-500.0,9.806e-05,2]
[348729961,1736758247948,-500.0,9.806e-05,2]
[348729962,1736758247957,-660.72,9.806e-05,2]
[348729963,1736758247967,-529.86,9.806e-05,2]
[348729964,1736758247976,-500.0,9.806e-05,2]
[348729965,1736758247986,-610.93,9.806e-05,2]
[348729966,1736758247995,-777.22,9.806e-05,2]
[348729967,1736758248166,-500.0,9.806e-05,2]
[348729968,1736758248176,-597.57,9.806e-05,2]
[348729969,1736758248185,-557.74,9.806e-05,2]
[348729970,1736758248197,-500.0,9.806e-05,2]
[348729971,1736758248207,-500.0,9.806e-05,2]
[348729972,1736758248216,-4539.89,9.806e-05,2]
[348729973,1736758248226,-500.0,9.806e-05,2]
[348729974,1736758248236,-500.0,9.806e-05,2]
[348729975,1736758248246,-1519.51,9.806e-05,2]
[348729976,1736758248256,-500.0,9.806e-05,2]
[348729977,1736758248266,-2265.75,9.806e-05,2]
[348729978,1736758248275,-606.96,9.806e-05,2]
[348729979,1736758248285,-507.84867024,9.806e-05,2]
[348729980,1736758248295,-500.0,9.806e-05,2]
[348729981,1736758248304,-500.0,9.806e-05,2]
[348729982,1736758248314,-562.34704797,9.806e-05,2]
[348729983,1736758248323,-500.0,9.806e-05,2]
[348729984,1736758248332,-504.17,9.806e-05,2]
[348729985,1736758248342,-516.2,9.806e-05,2]
[348729986,1736758248351,-1701.75,9.806e-05,2]
[348729987,1736758248361,-500.0,9.806e-05,2]
[348729988,1736758248371,-500.0,9.806e-05,2]
[348729989,1736758248381,-2215.67,9.806e-05,2]
[348729990,1736758248390,-500.0,9.806e-05,2]
[348729991,1736758248400,-2459.43,9.806e-05,2]
[348729992,1736758248410,-542.47,9.806e-05,2]
[348729993,1736758248419,-500.0,9.806e-05,2]
[348729994,1736758248429,-673.55,9.806e-05,2]
[348729995,1736758248440,-500.0,9.806e-05,2]
[348729996,1736758248450,-500.0,9.806e-05,2]
[348729997,1736758248460,-502.84837389,9.806e-05,2]
[348729998,1736758248469,-500.0,9.806e-05,2]
[348729999,1736758248479,-500.0,9.806e-05,2]
[348730000,1736758248488,-236.70713559,9.806e-05,2]
[348730001,1736758248498,-550.21,9.806e-05,2]
[348730002,1736758248508,-500.0,9.806e-05,2]
[348730003,1736758248517,-500.0,9.806e-05,2]
[348730004,1736758248527,-563.79,9.806e-05,2]
[348730005,1736758248536,-151.16618577,9.806e-05,2]
[348730006,1736758248546,-500.0,9.806e-05,2]
[348730007,1736758248557,-500.0,9.806e-05,2]
[348730008,1736758248567,-500.0,9.806e-05,2]
[348730009,1736758248577,-1208.23,9.806e-05,2]
[348730010,1736758248586,-500.0,9.806e-05,2]
[348730011,1736758248596,-606.96,9.806e-05,2]
[348730012,1736758248606,-1189.82,9.806e-05,2]
[348730013,1736758248616,-500.0,9.806e-05,2]
[348730014,1736758248626,-500.0,9.806e-05,2]
[348730015,1736758248636,-500.0,9.806e-05,2]
[348730016,1736758248645,-762.11,9.806e-05,2]
[348730017,1736758248655,-284.2205425,9.806e-05,2]
[348730018,1736758248665,-500.0,9.806e-05,2]
[348730019,1736758248675,-929.92,9.806e-05,2]
[348730020,1736758248685,-2190.53,9.806e-05,2]
[348730021,1736758248694,-500.0,9.806e-05,2]
[348730022,1736758248704,-500.0,9.806e-05,2]
[348730023,1736758248713,-489.08281801,9.806e-05,2]
[348730024,1736758248723,-500.0,9.806e-05,2]
[348730025,1736758248733,-500.0,9.806e-05,2]
[348730026,1736758248743,-885.43,9.806e-05,2]
[348730027,1736758248753,-703.83,9.806e-05,2]
[348730028,1736758248763,-500.0,9.806e-05,2]
[348730029,1736758248772,-502.9564839,9.806e-05,2]
[348730030,1736758248782,-500.0,9.806e-05,2]
[348730031,1736758248791,-500.0,9.806e-05,2]
[348730032,1736758248801,-500.0,9.806e-05,2]
[348730033,1736758248812,-500.0,9.806e-05,2]
[348730034,1736758248821,-500.0,9.806e-05,2]
[348730035,1736758248831,-702.83,9.806e-05,2]
[348730036,1736758248841,-500.0,9.806e-05,2]
[348730037,1736758248851,-500.0,9.806e-05,2]
[348730038,1736758248861,-500.0,9.806e-05,2]
[348730039,1736758248871,-500.0,9.806e-05,2]
[348730040,1736758248881,-500.0,9.806e-05,2]
[348730041,1736758248891,-500.0,9.806e-05,2]
[348730042,1736758248901,-1235.02,9.806e-05,2]
[348730043,1736758248912,-500.0,9.806e-05,2]
[348730044,1736758248922,-500.0,9.806e-05,2]
[348730045,1736758248932,-500.0,9.806e-05,2]
[348730046,1736758248942,-500.0,9.806e-05,2]
[348730047,1736758248952,-500.0,9.806e-05,2]
[348730048,1736758248963,-500.0,9.806e-05,2]
[348730049,1736758248973,-500.0,9.806e-05,2]
[348730050,1736758248983,-500.0,9.806e-05,2]
[348730051,1736758248993,-500.0,9.806e-05,2]
[348730052,1736758249003,-2438.67,9.806e-05,2]
[348730053,1736758249014,-500.0,9.806e-05,2]
[348730054,1736758249024,-1716.47,9.806e-05,2]
[348730055,1736758249037,-500.0,9.806e-05,2]
[348730056,1736758249047,-500.0,9.806e-05,2]
[348730057,1736758249058,-509.50758145,9.806e-05,2]
[348730058,1736758249067,-500.0,9.806e-05,2]
[348730059,1736758249078,-562.83,9.806e-05,2]
[348730060,1736758249089,-512.96877908,9.806e-05,2]
[348730061,1736758249099,-500.0,9.806e-05,2]
[348730062,1736758249110,-500.0,9.806e-05,2]
[348730063,1736758249120,-670.54,9.806e-05,2]
[348730064,1736758249130,-637.14,9.806e-05,2]
[348730065,1736758249140,-500.0,9.806e-05,2]
[348730066,1736758249150,-500.0,9.806e-05,2]
[348730067,1736758249160,-500.0,9.806e-05,2]
[348730068,1736758249170,-500.0,9.806e-05,2]
[348730069,1736758249180,-500.0,9.806e-05,2]
[348730070,1736758249190,-1286.0,9.806e-05,2]
[348730071,1736758249201,-500.0,9.807e-05,2]
[348730072,1736758249213,-613.91096147,9.807e-05,2]
[348730073,1736758249223,-638.1102202,9.807e-05,2]
[348730074,1736758249233,-611.316083,9.807e-05,2]
[348730075,1736758249243,-501.93219963,9.807e-05,2]
[348730076,1736758249258,-539.50715848,9.807e-05,2]
[348730077,1736758249268,-500.0,9.807e-05,2]
[348730078,1736758249279,-500.0,9.807e-05,2]
[348730079,1736758249289,-500.0,9.807e-05,2]
[348730080,1736758249299,-500.0,9.807e-05,2]
[348730081,1736758249309,-500.0,9.807e-05,2]
[348730082,1736758249319,-500.0,9.807e-05,2]
[348730083,1736758249329,-500.0,9.807e-05,2]
[348730084,1736758249339,-297.42,9.807e-05,2]
[348730085,1736758249350,-500.0,9.807e-05,2]
[348730086,1736758249360,-500.0,9.807e-05,2]
[348730087,1736758249370,-500.0,9.807e-05,2]
[348730088,1736758249379,-500.0,9.807e-05,2]
[348730089,1736758249389,-500.0,9.807e-05,2]
[348730090,1736758249399,-500.0,9.807e-05,2]
[348730091,1736758249410,-500.0,9.807e-05,2]
[348730092,1736758249420,-500.0,9.807e-05,2]
[348730093,1736758249430,-500.0,9.807e-05,2]
[348730094,1736758249440,-500.0,9.807e-05,2]
[348730095,1736758249450,-505.98215557,9.807e-05,2]
[348730096,1736758249459,-508.46936463,9.807e-05,2]
[348730097,1736758249469,-500.0,9.807e-05,2]
[348730098,1736758249479,-522.20790159,9.807e-05,2]
[348730099,1736758249489,-253.27446141,9.807e-05,2]
[348730100,1736758249499,-500.0,9.807e-05,2]
[348730101,1736758249508,-354.67036701,9.807e-05,2]
[348730102,1736758249517,-281.02586385,9.807e-05,2]
[348730103,1736758249527,-432.03903763,9.807e-05,2]
[348730104,1736758249536,-584.95932633,9.807e-05,2]
[348730105,1736758249545,-500.0,9.807e-05,2]
[348730106,1736758249555,-500.0,9.807e-05,2]
[348730107,1736758249564,-500.0,9.807e-05,2]
[348730108,1736758249574,-506.22862808,9.807e-05,2]
[348730109,1736758249583,-500.0,9.807e-05,2]
[348730110,1736758249593,-520.41481297,9.807e-05,2]
[348730111,1736758249602,-282.05822708,9.807e-05,2]
[348730112,1736758249612,-500.0,9.807e-05,2]
[348730113,1736758249621,-500.0,9.807e-05,2]
[348730114,1736758249631,-500.0,9.807e-05,2]
[348730115,1736758249641,-500.0,9.807e-05,2]
[348730116,1736758249650,-500.0,9.807e-05,2]
[348730117,1736758249660,-500.0,9.807e-05,2]
[348730118,1736758249671,-190.01566207,9.807e-05,2]
[348730119,1736758249681,-500.0,9.807e-05,2]
[348730120,1736758249690,-500.0,9.807e-05,2]
[348730121,1736758249700,-500.0,9.807e-05,2]
[348730122,1736758249709,-516.83892141,9.807e-05,2]
[348730123,1736758249719,-500.0,9.807e-05,2]
[348730124,1736758249729,-509.98666122,9.807e-05,2]
[348730125,1736758249738,-500.0,9.807e-05,2]
[348730126,1736758249747,-504.91558114,9.807e-05,2]
[348730127,1736758249757,-582.69589797,9.807e-05,2]
[348730128,1736758249767,-580.07,9.807e-05,2]
[348730129,1736758249776,-500.0,9.807e-05,2]
[348730130,1736758249786,-502.19834801,9.807e-05,2]
[348730131,1736758249795,-500.0,9.807e-05,2]
[348730132,1736758249805,-519.47164158,9.807e-05,2]
[348730133,1736758249826,-500.0,9.807e-05,2]
[348730134,1736758249836,-500.0,9.807e-05,2]
[348730135,1736758249846,-500.0,9.807e-05,2]
[348730136,1736758249856,-500.0,9.807e-05,2]
[348730137,1736758249866,-500.0,9.807e-05,2]
[348730138,1736758249876,-640.95931521,9.807e-05,2]
[348730139,1736758249886,-344.01870071,9.807e-05,2]
[348730140,1736758249896,-500.0,9.807e-05,2]
[348730141,1736758249906,-500.0,9.807e-05,2]
[348730142,1736758249916,-500.0,9.807e-05,2]
[348730143,1736758249926,-205.88,9.807e-05,2]
[348730144,1736758249936,-500.0,9.807e-05,2]
[348730145,1736758249947,-500.0,9.807e-05,2]
[348730146,1736758249957,-500.0,9.807e-05,2]
[348730147,1736758249967,-500.0,9.807e-05,2]
[348730148,1736758249976,-993.91,9.807e-05,2]
[348730149,1736758249986,-500.0,9.807e-05,2]
[348730150,1736758249996,-500.0,9.807e-05,2]
[348730151,1736758250007,-500.0,9.807e-05,2]
[348730152,1736758250016,-500.0,9.807e-05,2]
[348730153,1736758250027,-500.0,9.807e-05,2]
[348730154,1736758250043,-500.0,9.807e-05,2]
[348730155,1736758250053,-512.36311176,9.807e-05,2]
[348730156,1736758250063,-500.0,9.807e-05,2]
[348730157,1736758250075,-1236.07,9.807e-05,2]
[348730158,1736758250085,-500.0,9.807e-05,2]
[348730159,1736758250094,-500.0,9.807e-05,2]
[348730160,1736758250105,-500.0,9.807e-05,2]
[348730161,1736758250115,-500.0,9.807e-05,2]
[348730162,1736758250125,-589.65026765,9.807e-05,2]
[348730163,1736758250135,-500.0,9.807e-05,2]
[348730164,1736758250145,-500.0,9.807e-05,2]
[348730165,1736758250154,-500.0,9.807e-05,2]
[348730166,1736758250164,-832.85,9.807e-05,2]
[348730167,1736758250174,-500.0,9.807e-05,2]
[348730168,1736758250185,-500.0,9.807e-05,2]
[348730169,1736758250195,-500.0,9.807e-05,2]
[348730170,1736758250205,-500.0,9.807e-05,2]
[348730171,1736758250215,-500.0,9.807e-05,2]
[348730172,1736758250225,-500.0,9.807e-05,2]
[348730173,1736758250234,-500.0,9.807e-05,2]
[348730174,1736758250246,-714.42,9.807e-05,2]
[348730175,1736758250257,-500.0,9.807e-05,2]
[348730176,1736758250268,-500.0,9.807e-05,2]
[348730177,1736758250278,-2364.52,9.807e-05,2]
[348730178,1736758250287,-171.47957221,9.807e-05,2]
[348730179,1736758250297,-730.68,9.807e-05,2]
[348730180,1736758250306,-500.0,9.807e-05,2]
[348730181,1736758250316,-500.0,9.807e-05,2]
[348730182,1736758250326,-697.04,9.807e-05,2]
[348730183,1736758250335,-500.0,9.807e-05,2]
[348730184,1736758250345,-500.0,9.807e-05,2]
[348730185,1736758250355,-1185.22,9.807e-05,2]
[348730186,1736758250365,-500.0,9.807e-05,2]
[348730187,1736758250375,-500.0,9.807e-05,2]
[348730188,1736758250385,-500.0,9.807e-05,2]
[348730189,1736758250394,-500.0,9.807e-05,2]
[348730190,1736758250404,-500.0,9.807e-05,2]
[348730191,1736758250414,-500.0,9.807e-05,2]
[348730192,1736758250423,-2284.07,9.807e-05,2]
[348730193,1736758250433,-500.0,9.807e-05,2]
[348730194,1736758250443,-500.0,9.807e-05,2]
[348730195,1736758250452,-206.27812766,9.807e-05,2]
[348730196,1736758250462,-500.0,9.807e-05,2]
[348730197,1736758250472,-500.0,9.807e-05,2]
[348730198,1736758250482,-505.71429642,9.807e-05,2]
[348730199,1736758250492,-2946.14,9.807e-05,2]
[348730200,1736758250502,-500.0,9.807e-05,2]
[348730201,1736758250511,-509.88,9.807e-05,2]
[348730202,1736758250521,-500.0,9.807e-05,2]
[348730203,1736758250531,-500.0,9.807e-05,2]
[348730204,1736758250541,-501.29240161,9.807e-05,2]
[348730205,1736758250550,-232.81526744,9.807e-05,2]
[348730206,1736758250559,-500.0,9.807e-05,2]
[348730207,1736758250569,-500.0,9.807e-05,2]
[348730208,1736758250579,-506.75276599,9.807e-05,2]
[348730209,1736758250588,-500.0,9.807e-05,2]
[348730210,1736758250598,-500.0,9.807e-05,2]
[348730211,1736758250607,-492.4847969,9.807e-05,2]
[348730212,1736758250618,-417.22598471,9.807e-05,2]
[348730213,1736758250627,-612.53,9.807e-05,2]
[348730214,1736758250740,-1753.65,9.807e-05,2]
[348730215,1736758250749,-500.0,9.807e-05,2]
[348730216,1736758250758,-500.0,9.807e-05,2]
[348730217,1736758250768,-500.0,9.807e-05,2]
[348730218,1736758250777,-500.0,9.807e-05,2]
[348730219,1736758250786,-500.0,9.807e-05,2]
[348730220,1736758250796,-259.54707146,9.807e-05,2]
[348730221,1736758250805,-500.0,9.807e-05,2]
[348730222,1736758250814,-612.37,9.807e-05,2]
[348730223,1736758250823,-2373.22,9.807e-05,2]
[348730224,1736758250832,-500.0,9.807e-05,2]
[348730225,1736758250841,-500.0,9.807e-05,2]
[348730226,1736758250850,-500.0,9.807e-05,2]
[348730227,1736758250860,-1126.5,9.807e-05,2]
[348730228,1736758250869,-500.0,9.807e-05,2]
[348730229,1736758250878,-655.63,9.807e-05,2]
[348730230,1736758250887,-500.0,9.807e-05,2]
[348730231,1736758250897,-500.0,9.807e-05,2]
[348730232,1736758250907,-706.77,9.807e-05,2]
[348730233,1736758250916,-500.0,9.807e-05,2]
[348730234,1736758250925,-500.0,9.807e-05,2]
[348730235,1736758250934,-2623.03,9.807e-05,2]
[348730236,1736758250943,-500.0,9.807e-05,2]
[348730237,1736758250953,-775.79,9.807e-05,2]
[348730238,1736758250961,-1153.47,9.807e-05,2]
[348730239,1736758250971,-500.0,9.807e-05,2]
[348730240,1736758250980,-716.91,9.807e-05,2]
[348730241,1736758250990,-1782.4,9.807e-05,2]
[348730242,1736758250999,-807.52,9.807e-05,2]
[348730243,1736758251008,-500.0,9.807e-05,2]
[348730244,1736758251017,-735.42,9.807e-05,2]
[348730245,1736758251027,-500.0,9.807e-05,2]
[348730246,1736758251041,-500.0,9.807e-05,2]
[348730247,1736758251051,-846.18,9.807e-05,2]
[348730248,1736758251060,-1178.84,9.807e-05,2]
[348730249,1736758251070,-518.89,9.807e-05,2]
[348730250,1736758251080,-1006.46,9.807e-05,2]
[348730251,1736758251089,-500.0,9.807e-05,2]
[348730252,1736758251098,-373.37474946,9.807e-05,2]
[348730253,1736758251107,-769.31,9.807e-05,2]
[348730254,1736758251116,-998.48,9.807e-05,2]
[348730255,1736758251126,-1015.65,9.807e-05,2]
[348730256,1736758251135,-500.0,9.807e-05,2]
[348730257,1736758251144,-1922.41,9.807e-05,2]
[348730258,1736758251153,-1383.47,9.807e-05,2]
[348730259,1736758251163,-420.0,9.813e-05,2]
[348730260,1736758251172,-8682.9489845,9.91e-05,2]
[348730261,1736758251181,-175.78,9.948e-05,2]
[348730262,1736758251190,-1157.65273546,9.969e-05,2]
[348730263,1736758251201,-500.0,9.973e-05,2]
[348730264,1736758251211,-21771.61178139,9.975e-05,2]
[348730265,1736758251220,-25532.11178675,9.998e-05,2]
[348730266,1736758251230,-9126.77266898,9.998e-05,2]
[348730267,1736758251240,-17439.46740302,9.998e-05,2]
[348730268,1736758251249,-500.0,9.999e-05,2]
[348730269,1736758251259,-500.0,9.999e-05,2]
[348730270,1736758251268,-500.0,9.999e-05,2]
[348730271,1736758251278,-500.0,9.999e-05,2]
[348730272,1736758251287,-500.0,9.999e-05,2]
[348730273,1736758251296,-500.0,9.999e-05,2]
[348730274,1736758251305,-500.0,9.999e-05,2]
[348730275,1736758251314,-500.0,9.999e-05,2]
[348730276,1736758251323,-500.0,9.999e-05,2]
[348730277,1736758251333,-219.48,9.999e-05,2]
[348730278,1736758251343,-183.141693,9.999e-05,2]
[348730279,1736758251352,-3915391.40502508,0.0001,2]
[348730280,1736758251361,-7015.1379887,0.0001,2]
[348730281,1736758251370,-331.65505043,0.0001,2]
[348730282,1736758251380,-7312.62577763,0.0001,2]